[Event "GER-ch Youth U12W 2020"]
[Site "Willingen"]
[Date "2020.10.30"]
[Round "5.19"]
[White "Eichhorn, Mathilda"]
[Black "Heutling, Sarah"]
[Result "1-0"]
[ECO "C50"]
[WhiteElo "1560"]
[BlackElo "1197"]
[Annotator "NA RC"]
[PlyCount "69"]
[EventDate "2020.10.27"]
[EventType "swiss"]
[EventRounds "7"]
[EventCountry "GER"]
[SourceTitle "playchess.com"]
[Source "ChessBase"]
[SourceQuality "1"]
[TimeControl "40/5400+30:1800+30"]

1. e4 {[%emt 0:00:00]} e5 {[%emt 0:00:00]} 2. Nf3 {[%emt 0:00:00]} Nc6 {[%emt 0:00:00]} 3. Bc4 {[%emt 0:00:00]} Bc5 {[%emt 0:00:00]} 4. d3 {[%emt 0:00:00]} d6 {[%emt 0:00:03]} 5. c3 {[%emt 0:00:38]} a6 {[%emt 0:01:15]} 6. b4 {[%emt 0:00:34]} Ba7 {[%emt 0:00:10]} 7. Qb3 {[%emt 0:00:24]} Be6 {[%emt 0:02:41]} 8. Bxe6 {[%emt 0:00:26]} fxe6 {[%emt 0:00:09]} 9. Qxe6+ {[%emt 0:00:49]} Qe7 {[%emt 0:00:39]} 10. Qb3 {[%emt 0:05:06]} O-O-O {[%emt 0:00:45]} 11. Bg5 {[%emt 0:01:44]} Nf6 {[%emt 0:00:31]} 12. Na3 {[%emt 0:03:24]} h6 {[%emt 0:01:32]} 13. Bh4 {[%emt 0:05:07]} g5 {[%emt 0:03:20]} 14. Bg3 {[%emt 0:00:05]} Rhf8 {[%emt 0:00:31]} 15. O-O-O {[%emt 0:16:01]} d5 {[%emt 0:10:14]} 16. exd5 {[%emt 0:04:48]} Nxd5 {[%emt 0:00:31]} 17. Rhf1 {[%emt 0:29:50]} Nf4 {[%emt 0:01:56]} 18. Bxf4 {[%emt 0:01:43]} Rxf4 {[%emt 0:03:57]} 19. h3 {[%emt 0:02:03]} h5 {[%emt 0:05:07]} 20. Rd2 {[%emt 0:03:02]} g4 {[%emt 0:00:40]} 21. hxg4 {[%emt 0:01:10]} hxg4 {[%emt 0:00:12]} 22. Nh2 {[%emt 0:01:19]} e4 {[%emt 0:02:14]} 23. g3 {[%emt 0:01:05]} Rf5 {[%emt 0:01:22]} 24. Qd1 {[%emt 0:04:06]} a5 {[%emt 0:01:08]} 25. Qxg4 {[%emt 0:01:33]} Qf8 {[%emt 0:01:45]} 26. dxe4 {[%emt 0:00:53]} Rxd2 {[%emt 0:00:18]} 27. Kxd2 {[%emt 0:00:14]} Qh6+ {[%emt 0:09:34]} 28. Kc2 {[%emt 0:00:43]} Kd8 {[%emt 0:05:00]} 29. Qxf5 {[%emt 0:01:53]} Ne7 {[%emt 0:00:23]} 30. Qxa5 {[%emt 0:01:34]} Bb8 {[%emt 0:00:32]} 31. Ng4 {[%emt 0:01:41]} Qg7 {[%emt 0:00:25]} 32. f3 {[%emt 0:00:40]} Nc6 {[%emt 0:00:17]} 33. Rd1+ {[%emt 0:00:59]} Kc8 {[%emt 0:00:07]} 34. Qf5+ {[%emt 0:00:12]} Qd7 {[%emt 0:00:10]} 35. Qxd7# 1-0

[Event "GER-ch Youth U12W 2020"]
[Site "Willingen"]
[Date "2020.10.30"]
[Round "5.20"]
[White "Marrufo, Emilia"]
[Black "Woiteck, Helena"]
[Result "0-1"]
[ECO "D00"]
[WhiteElo "788"]
[BlackElo "1092"]
[Annotator "NA RC"]
[PlyCount "122"]
[EventDate "2020.10.27"]
[EventType "swiss"]
[EventRounds "7"]
[EventCountry "GER"]
[SourceTitle "playchess.com"]
[Source "ChessBase"]
[SourceQuality "1"]
[TimeControl "40/5400+30:1800+30"]

1. d4 {[%emt 0:00:00]} d5 {[%emt 0:00:00]} 2. Bf4 {[%emt 0:00:00]} Bf5 {[%emt 0:00:00]} 3. e3 {[%emt 0:00:00]} Nf6 {[%emt 0:00:00]} 4. Nd2 {[%emt 0:01:10]} e6 {[%emt 0:00:13]} 5. Ngf3 {[%emt 0:00:15]} c5 {[%emt 0:00:22]} 6. c3 {[%emt 0:00:23]} Nc6 {[%emt 0:00:15]} 7. Be2 {[%emt 0:01:27]} c4 {[%emt 0:01:37]} 8. O-O {[%emt 0:00:24]} Bd6 {[%emt 0:00:49]} 9. Ne5 {[%emt 0:02:42]} O-O {[%emt 0:03:19]} 10. h3 {[%emt 0:01:32]} Ne4 {[%emt 0:00:57]} 11. Bf3 {[%emt 0:04:37]} Nxd2 {[%emt 0:05:44]} 12. Qxd2 {[%emt 0:00:35]} Qc7 {[%emt 0:00:51]} 13. Rfe1 {[%emt 0:07:32]} Nxe5 {[%emt 0:02:09]} 14. dxe5 {[%emt 0:00:42]} Bxe5 {[%emt 0:01:11]} 15. Bxe5 {[%emt 0:00:35]} Qxe5 {[%emt 0:00:19]} 16. e4 {[%emt 0:00:09]} Bxe4 {[%emt 0:02:31]} 17. Bxe4 {[%emt 0:00:55]} dxe4 {[%emt 0:00:20]} 18. f3 {[%emt 0:00:56]} Qc5+ {[%emt 0:00:25]} 19. Kh1 {[%emt 0:00:54]} exf3 {[%emt 0:00:28]} 20. gxf3 {[%emt 0:00:12]} Qc6 {[%emt 0:00:45]} 21. Re3 {[%emt 0:01:07]} Rfd8 {[%emt 0:01:21]} 22. Qg2 {[%emt 0:03:17]} Rd7 {[%emt 0:01:29]} 23. Rg1 {[%emt 0:00:54]} g6 {[%emt 0:00:24]} 24. Qg5 {[%emt 0:02:15]} Rd5 {[%emt 0:01:49]} 25. Qh6 {[%emt 0:02:58]} Rh5 {[%emt 0:01:14]} 26. Qf4 {[%emt 0:01:59]} Rxh3+ {[%emt 0:00:55]} 27. Kg2 {[%emt 0:00:21]} Rh5 {[%emt 0:00:16]} 28. Rh1 {[%emt 0:00:32]} Rxh1 {[%emt 0:00:17]} 29. Kxh1 {[%emt 0:00:18]} Rd8 {[%emt 0:00:46]} 30. Qh4 {[%emt 0:00:54]} Rd1+ {[%emt 0:00:24]} 31. Kg2 {[%emt 0:00:44]} Rd2+ {[%emt 0:00:29]} 32. Kg3 {[%emt 0:00:34]} Qd6+ {[%emt 0:00:58]} 33. Qf4 {[%emt 0:00:30]} Rg2+ {[%emt 0:00:41]} 34. Kxg2 {[%emt 0:00:32]} Qxf4 {[%emt 0:00:15]} 35. Re4 {[%emt 0:00:48]} Qd2+ 36. Kg3 b5 {[%emt 0:01:36]} 37. Re5 {[%emt 0:01:15]} Qxb2 {[%emt 0:00:31]} 38. Rc5 {[%emt 0:00:33]} a6 {[%emt 0:00:31]} 39. Rc8+ {[%emt 0:02:32]} Kg7 {[%emt 0:00:06]} 40. Ra8 {[%emt 0:00:40]} Qxa2 {[%emt 0:00:15]} 41. Ra7 {[%emt 0:31:32]} a5 {[%emt 0:30:30]} 42. Rb7 {[%emt 0:00:37]} Qb2 {[%emt 0:00:39]} 43. Kg4 {[%emt 0:00:33]} a4 {[%emt 0:00:18]} 44. Rd7 {[%emt 0:00:13]} Qc1 {[%emt 0:00:25]} 45. Ra7 a3 46. Kg3 {[%emt 0:01:24]} Qb2 {[%emt 0:00:47]} 47. Ra5 {[%emt 0:00:23]} a2 {[%emt 0:00:11]} 48. Ra6 {[%emt 0:00:22]} a1=Q {[%emt 0:00:10]} 49. Rxa1 {[%emt 0:00:13]} Qxa1 {[%emt 0:00:08]} 50. Kg2 {[%emt 0:00:07]} Qxc3 {[%emt 0:00:09]} 51. Kg3 {[%emt 0:00:47]} b4 {[%emt 0:00:12]} 52. Kg2 {[%emt 0:00:54]} b3 {[%emt 0:00:17]} 53. Kg3 {[%emt 0:01:20]} b2 {[%emt 0:00:09]} 54. Kg4 {[%emt 0:00:22]} b1=R {[%emt 0:00:20]} 55. Kg3 {[%emt 0:00:27]} Qd4 {[%emt 0:00:17]} 56. Kh3 {[%emt 0:00:47]} Rh1+ {[%emt 0:00:30]} 57. Kg2 {[%emt 0:00:19]} Qh4 {[%emt 0:00:35]} 58. f4 {[%emt 0:01:22]} Qh3+ {[%emt 0:00:56]} 59. Kf2 Rh2+ 60. Ke1 {[%emt 0:01:28]} Qa3 {[%emt 0:01:08]} 61. Kd1 {[%emt 0:00:56]} Qa1# {[%emt 0:00:06]} 0-1

[Event "GER-ch Youth U12W 2020"]
[Site "Willingen"]
[Date "2020.10.30"]
[Round "6.1"]
[White "Wartenberg, Alissa"]
[Black "Trunz, Michelle"]
[Result "1-0"]
[ECO "B90"]
[WhiteElo "1463"]
[BlackElo "1662"]
[Annotator "NA RC"]
[PlyCount "65"]
[EventDate "2020.10.27"]
[EventType "swiss"]
[EventRounds "7"]
[EventCountry "GER"]
[SourceTitle "playchess.com"]
[Source "ChessBase"]
[SourceQuality "1"]
[TimeControl "40/5400+30:1800+30"]

1. e4 {[%emt 0:00:00]} c5 {[%emt 0:00:00]} 2. Nf3 {[%emt 0:00:00]} d6 {[%emt 0:00:00]} 3. d4 {[%emt 0:00:00]} cxd4 {[%emt 0:00:00]} 4. Nxd4 {[%emt 0:00:00]} Nf6 {[%emt 0:00:00]} 5. Nc3 {[%emt 0:00:00]} a6 {[%emt 0:00:06]} 6. Be3 {[%emt 0:00:05]} e5 {[%emt 0:03:10]} 7. Nb3 {[%emt 0:00:07]} Be6 {[%emt 0:00:24]} 8. f3 {[%emt 0:00:26]} Be7 {[%emt 0:00:25]} 9. Qd2 {[%emt 0:00:31]} O-O {[%emt 0:00:48]} 10. O-O-O {[%emt 0:00:10]} Qc7 {[%emt 0:01:54]} 11. g4 {[%emt 0:09:22]} b5 {[%emt 0:00:18]} 12. Nd5 {[%emt 0:04:54]} Bxd5 {[%emt 0:05:19]} 13. exd5 {[%emt 0:00:18]} Rc8 {[%emt 0:02:50]} 14. Kb1 {[%emt 0:01:24]} Bd8 {[%emt 0:04:00]} 15. h4 {[%emt 0:00:49]} Nbd7 {[%emt 0:01:05]} 16. h5 {[%emt 0:04:46]} Rab8 {[%emt 0:02:19]} 17. g5 {[%emt 0:00:41]} Ne8 {[%emt 0:00:10]} 18. g6 {[%emt 0:01:02]} a5 {[%emt 0:10:31]} 19. h6 {[%emt 0:10:44]} fxg6 {[%emt 0:03:55]} 20. hxg7 {[%emt 0:00:28]} Nxg7 {[%emt 0:07:13]} 21. Bd3 {[%emt 0:06:41]} Nf8 {[%emt 0:04:26]} 22. f4 {[%emt 0:19:03]} exf4 {[%emt 0:08:04]} 23. Bxf4 {[%emt 0:01:31]} Ne8 {[%emt 0:05:49]} 24. Bh6 {[%emt 0:02:05]} Nf6 {[%emt 0:05:38]} 25. Bxf8 {[%emt 0:02:09]} Kxf8 {[%emt 0:00:34]} 26. Qh6+ {[%emt 0:00:26]} Qg7 {[%emt 0:01:05]} 27. Qf4 {[%emt 0:00:55]} Be7 {[%emt 0:12:17]} 28. Nd4 {[%emt 0:03:28]} Kg8 {[%emt 0:02:43]} 29. Rdg1 {[%emt 0:03:16]} Nxd5 {[%emt 0:01:39]} 30. Qe4 {[%emt 0:05:09]} Nf6 {[%emt 0:00:42]} 31. Qf3 {[%emt 0:01:49]} Nd7 {[%emt 0:02:47]} 32. Nf5 {[%emt 0:05:03]} Ne5 {[%emt 0:01:51]} 33. Qd5+ {[%emt 0:00:39]} 1-0

[Event "GER-ch Youth U12W 2020"]
[Site "Willingen"]
[Date "2020.10.30"]
[Round "6.2"]
[White "Bräutigam, Katerina"]
[Black "Arnold, Rubina"]
[Result "0-1"]
[ECO "B01"]
[WhiteElo "1744"]
[BlackElo "1414"]
[Annotator "NA RC"]
[PlyCount "120"]
[EventDate "2020.10.27"]
[EventType "swiss"]
[EventRounds "7"]
[EventCountry "GER"]
[SourceTitle "playchess.com"]
[Source "ChessBase"]
[SourceQuality "1"]
[TimeControl "40/5400+30:1800+30"]

1. e4 {[%emt 0:00:00]} d5 {[%emt 0:00:00]} 2. exd5 {[%emt 0:00:00]} Nf6 {[%emt 0:00:00]} 3. d4 {[%emt 0:00:00]} Nxd5 {[%emt 0:00:00]} 4. Nf3 {[%emt 0:00:27]} g6 {[%emt 0:00:08]} 5. c4 {[%emt 0:00:50]} Nb6 {[%emt 0:00:09]} 6. Nc3 {[%emt 0:00:45]} Bg7 {[%emt 0:01:09]} 7. c5 {[%emt 0:02:23]} Nd5 {[%emt 0:00:33]} 8. Bc4 {[%emt 0:00:31]} Nxc3 {[%emt 0:03:38]} 9. bxc3 {[%emt 0:00:15]} O-O {[%emt 0:04:50]} 10. O-O {[%emt 0:01:54]} Nd7 {[%emt 0:08:18]} 11. Re1 {[%emt 0:07:02]} Nf6 {[%emt 0:06:14]} 12. Qb3 {[%emt 0:04:53]} c6 {[%emt 0:05:48]} 13. Bg5 {[%emt 0:01:42]} Qc7 {[%emt 0:10:56]} 14. Ne5 {[%emt 0:06:46]} e6 {[%emt 0:04:23]} 15. Bxf6 {[%emt 0:08:40]} Bxf6 {[%emt 0:00:16]} 16. Rad1 {[%emt 0:03:33]} b6 {[%emt 0:07:02]} 17. Qa3 {[%emt 0:18:10]} Bb7 {[%emt 0:06:02]} 18. Rb1 {[%emt 0:05:30]} bxc5 {[%emt 0:04:01]} 19. Qxc5 {[%emt 0:06:12]} Be7 {[%emt 0:00:33]} 20. Rxb7 {[%emt 0:00:14]} Qxb7 {[%emt 0:00:18]} 21. Qxc6 {[%emt 0:00:11]} Qxc6 {[%emt 0:06:39]} 22. Nxc6 {[%emt 0:00:12]} Bg5 {[%emt 0:01:15]} 23. Ba6 {[%emt 0:13:04]} Bd2 {[%emt 0:03:00]} 24. Rd1 {[%emt 0:00:42]} Bxc3 {[%emt 0:00:21]} 25. a4 {[%emt 0:00:51]} f6 {[%emt 0:04:12]} 26. Bb7 {[%emt 0:04:51]} Rae8 {[%emt 0:00:12]} 27. a5 {[%emt 0:01:55]} a6 {[%emt 0:01:28]} 28. Kf1 {[%emt 0:05:45]} Rf7 {[%emt 0:04:46]} 29. Bxa6 {[%emt 0:00:39]} Ra8 {[%emt 0:03:35]} 30. Bc4 {[%emt 0:01:35]} Rc7 {[%emt 0:00:13]} 31. Bxe6+ {[%emt 0:00:48]} Kf8 {[%emt 0:00:18]} 32. d5 {[%emt 0:01:13]} Re8 {[%emt 0:03:04]} 33. a6 {[%emt 0:02:26]} Ra8 {[%emt 0:03:11]} 34. Rd3 {[%emt 0:02:12]} Be5 {[%emt 0:03:30]} 35. Ra3 {[%emt 0:00:25]} Bd6 {[%emt 0:00:46]} 36. Ra5 {[%emt 0:00:18]} f5 {[%emt 0:02:00]} 37. Ke2 {[%emt 0:01:00]} Kg7 {[%emt 0:01:26]} 38. Ke3 {[%emt 0:00:34]} Kf6 {[%emt 0:00:29]} 39. Kd4 {[%emt 0:00:18]} Rxc6 {[%emt 0:00:34]} 40. dxc6 {[%emt 0:00:07]} Kxe6 {[%emt 0:00:08]} 41. Kc4 {[%emt 0:31:04]} Bc7 {[%emt 0:30:55]} 42. Ra2 {[%emt 0:00:28]} Kd6 {[%emt 0:00:35]} 43. Ra3 {[%emt 0:00:00]} Kxc6 {[%emt 0:00:00]} 44. Rh3 {[%emt 0:00:00]} h5 {[%emt 0:00:00]} 45. Re3 {[%emt 0:00:00]} Rxa6 {[%emt 0:00:00]} 46. Re6+ {[%emt 0:00:00]} Kb7 {[%emt 0:00:00]} 47. Rxa6 {[%emt 0:00:00]} Kxa6 {[%emt 0:00:00]} 48. Kd5 {[%emt 0:00:00]} Bxh2 {[%emt 0:00:00]} 49. Ke6 {[%emt 0:00:00]} Bf4 {[%emt 0:00:00]} 50. Kf6 {[%emt 0:00:09]} g5 {[%emt 0:00:00]} 51. Kxf5 {[%emt 0:00:13]} h4 {[%emt 0:00:00]} 52. Kg4 {[%emt 0:00:30]} Kb5 {[%emt 0:00:00]} 53. Kf3 {[%emt 0:01:09]} Kc4 {[%emt 0:00:00]} 54. Ke2 {[%emt 0:00:50]} Kc3 {[%emt 0:00:00]} 55. f3 {[%emt 0:01:49]} Kc2 {[%emt 0:00:00]} 56. Ke1 {[%emt 0:02:18]} Kc1 {[%emt 0:00:00]} 57. Ke2 {[%emt 0:00:22]} Bd2 {[%emt 0:00:00]} 58. Kf2 {[%emt 0:00:36]} Kd1 {[%emt 0:00:00]} 59. Kf1 {[%emt 0:00:28]} Be3 {[%emt 0:00:00]} 60. g4 {[%emt 0:00:37]} hxg3 {[%emt 0:00:00]} 0-1

[Event "GER-ch Youth U12W 2020"]
[Site "Willingen"]
[Date "2020.10.30"]
[Round "6.3"]
[White "Wilmink, Anna"]
[Black "Fischer, Juliane"]
[Result "1/2-1/2"]
[ECO "B37"]
[WhiteElo "1608"]
[BlackElo "1509"]
[Annotator "NA RC"]
[PlyCount "45"]
[EventDate "2020.10.27"]
[EventType "swiss"]
[EventRounds "7"]
[EventCountry "GER"]
[SourceTitle "playchess.com"]
[Source "ChessBase"]
[SourceQuality "1"]
[TimeControl "40/5400+30:1800+30"]

1. e4 {[%emt 0:00:00]} c5 {[%emt 0:00:00]} 2. Nf3 {[%emt 0:00:00]} g6 {[%emt 0:00:00]} 3. d4 {[%emt 0:00:00]} cxd4 {[%emt 0:00:06]} 4. Nxd4 {[%emt 0:00:01]} Bg7 {[%emt 0:00:15]} 5. c4 {[%emt 0:00:12]} Nc6 {[%emt 0:00:29]} 6. Nc2 {[%emt 0:00:42]} Nf6 {[%emt 0:00:59]} 7. Nc3 {[%emt 0:00:13]} d6 {[%emt 0:01:21]} 8. Be2 {[%emt 0:00:21]} O-O {[%emt 0:01:29]} 9. O-O {[%emt 0:00:27]} Nd7 {[%emt 0:03:00]} 10. Be3 {[%emt 0:01:20]} Nc5 {[%emt 0:02:05]} 11. f3 {[%emt 0:01:33]} Bxc3 {[%emt 0:07:02]} 12. bxc3 {[%emt 0:00:41]} Na4 {[%emt 0:01:31]} 13. Qd2 {[%emt 0:03:13]} Qa5 {[%emt 0:04:22]} 14. Bh6 {[%emt 0:05:54]} Qxc3 {[%emt 0:05:18]} 15. Qxc3 {[%emt 0:02:17]} Nxc3 {[%emt 0:00:05]} 16. Bxf8 {[%emt 0:01:15]} Nxe2+ {[%emt 0:00:08]} 17. Kf2 {[%emt 0:00:15]} Be6 {[%emt 0:02:12]} 18. Na3 {[%emt 0:14:31]} Kxf8 {[%emt 0:08:45]} 19. Kxe2 Ne5 {[%emt 0:00:19]} 20. Rfc1 {[%emt 0:02:52]} Rc8 {[%emt 0:00:36]} 21. Rc2 {[%emt 0:11:32]} Nxc4 {[%emt 0:10:27]} 22. Nxc4 {[%emt 0:09:12]} Rxc4 {[%emt 0:04:58]} 23. Rac1 {[%emt 0:04:35]} 1/2-1/2

[Event "GER-ch Youth U12W 2020"]
[Site "Willingen"]
[Date "2020.10.30"]
[Round "6.4"]
[White "Lorenz, Veronika"]
[Black "Peglau, Charis"]
[Result "0-1"]
[ECO "B14"]
[WhiteElo "1273"]
[BlackElo "1768"]
[Annotator "NA RC"]
[PlyCount "38"]
[EventDate "2020.10.27"]
[EventType "swiss"]
[EventRounds "7"]
[EventCountry "GER"]
[SourceTitle "playchess.com"]
[Source "ChessBase"]
[SourceQuality "1"]
[TimeControl "40/5400+30:1800+30"]

1. e4 {[%emt 0:00:00]} c6 {[%emt 0:00:00]} 2. d4 {[%emt 0:00:00]} d5 {[%emt 0:00:00]} 3. exd5 {[%emt 0:00:00]} cxd5 {[%emt 0:00:00]} 4. c4 {[%emt 0:00:00]} Nf6 {[%emt 0:00:00]} 5. Nc3 {[%emt 0:00:22]} g6 {[%emt 0:00:11]} 6. Nf3 {[%emt 0:02:32]} Bg7 {[%emt 0:01:41]} 7. cxd5 {[%emt 0:04:58]} O-O {[%emt 0:08:39]} 8. Bc4 {[%emt 0:03:35]} Nbd7 {[%emt 0:02:44]} 9. d6 {[%emt 0:03:50]} e6 {[%emt 0:14:01]} 10. Ne5 {[%emt 0:05:20]} Nb6 {[%emt 0:00:52]} 11. O-O {[%emt 0:04:29]} Qxd6 {[%emt 0:01:33]} 12. Qd3 {[%emt 0:06:26]} Rd8 {[%emt 0:07:46]} 13. Rd1 {[%emt 0:05:44]} Nfd5 {[%emt 0:03:05]} 14. Bb3 {[%emt 0:06:20]} Nxc3 {[%emt 0:01:16]} 15. Nxf7 {[%emt 0:15:28]} Ne2+ {[%emt 0:01:43]} 16. Qxe2 {[%emt 0:00:41]} Kxf7 {[%emt 0:00:09]} 17. Qf3+ {[%emt 0:01:42]} Kg8 {[%emt 0:00:25]} 18. Bg5 {[%emt 0:00:58]} Rf8 {[%emt 0:00:38]} 19. Qe3 {[%emt 0:04:43]} Nd5 {[%emt 0:01:26]} 0-1

[Event "GER-ch Youth U12W 2020"]
[Site "Willingen"]
[Date "2020.10.30"]
[Round "6.5"]
[White "Petrosyan, Ani"]
[Black "Haug, Mara"]
[Result "0-1"]
[ECO "A04"]
[WhiteElo "1370"]
[BlackElo "1366"]
[Annotator "NA RC"]
[PlyCount "172"]
[EventDate "2020.10.27"]
[EventType "swiss"]
[EventRounds "7"]
[EventCountry "GER"]
[SourceTitle "playchess.com"]
[Source "ChessBase"]
[SourceQuality "1"]
[TimeControl "40/5400+30:1800+30"]

1. Nf3 {[%emt 0:00:00]} c5 {[%emt 0:00:00]} 2. e3 {[%emt 0:01:25]} d5 {[%emt 0:02:33]} 3. d4 {[%emt 0:00:39]} e6 {[%emt 0:00:50]} 4. c4 {[%emt 0:00:11]} Nc6 {[%emt 0:00:19]} 5. Nc3 {[%emt 0:00:09]} Nf6 {[%emt 0:00:08]} 6. b3 {[%emt 0:00:27]} a6 {[%emt 0:03:09]} 7. Bb2 {[%emt 0:01:16]} Bd6 {[%emt 0:00:45]} 8. Be2 {[%emt 0:00:51]} O-O {[%emt 0:03:35]} 9. O-O {[%emt 0:01:05]} Qc7 {[%emt 0:03:39]} 10. cxd5 {[%emt 0:08:07]} exd5 {[%emt 0:00:39]} 11. dxc5 {[%emt 0:01:28]} Bxc5 {[%emt 0:05:00]} 12. Nxd5 {[%emt 0:01:15]} Nxd5 {[%emt 0:03:50]} 13. Qxd5 {[%emt 0:01:24]} Ba7 {[%emt 0:04:51]} 14. Qd3 {[%emt 0:01:18]} Bb8 {[%emt 0:03:59]} 15. Rac1 {[%emt 0:01:50]} Bg4 {[%emt 0:06:04]} 16. g3 {[%emt 0:02:21]} Qa5 {[%emt 0:10:50]} 17. Qc3 {[%emt 0:03:18]} Qxc3 {[%emt 0:05:44]} 18. Bxc3 {[%emt 0:00:13]} Bc7 {[%emt 0:06:15]} 19. Rfd1 {[%emt 0:02:40]} Rad8 {[%emt 0:05:46]} 20. Nd4 {[%emt 0:02:56]} Rxd4 {[%emt 0:07:15]} 21. exd4 {[%emt 0:03:15]} Bxe2 {[%emt 0:00:10]} 22. Re1 {[%emt 0:00:08]} Bf3 {[%emt 0:00:27]} 23. Re3 {[%emt 0:01:31]} Bd5 {[%emt 0:02:16]} 24. Rce1 {[%emt 0:02:37]} Bb6 {[%emt 0:01:10]} 25. Rd3 {[%emt 0:04:03]} Rd8 {[%emt 0:01:05]} 26. Red1 {[%emt 0:04:59]} h6 {[%emt 0:01:57]} 27. Re1 {[%emt 0:10:06]} Be6 {[%emt 0:02:09]} 28. d5 {[%emt 0:04:37]} Rxd5 {[%emt 0:01:14]} 29. Rxd5 {[%emt 0:00:51]} Bxd5 {[%emt 0:00:12]} 30. Re8+ {[%emt 0:00:26]} Kh7 {[%emt 0:00:08]} 31. Kf1 {[%emt 0:00:36]} Kg6 {[%emt 0:01:21]} 32. Rg8 {[%emt 0:00:54]} f6 {[%emt 0:00:17]} 33. Re8 {[%emt 0:01:20]} Bc5 {[%emt 0:02:06]} 34. Re2 {[%emt 0:03:13]} a5 {[%emt 0:02:29]} 35. Rd2 {[%emt 0:01:26]} Be6 {[%emt 0:00:37]} 36. Re2 {[%emt 0:02:52]} Kf7 {[%emt 0:01:02]} 37. Re4 {[%emt 0:01:27]} Nb4 {[%emt 0:02:26]} 38. a3 {[%emt 0:03:52]} Nd5 {[%emt 0:02:10]} 39. Bxa5 {[%emt 0:02:56]} Bxa3 {[%emt 0:03:15]} 40. Rc4 {[%emt 0:01:20]} Bd7 {[%emt 0:03:12]} 41. Ke1 {[%emt 0:37:40]} b6 {[%emt 0:32:58]} 42. Bd2 {[%emt 0:05:01]} Bc5 {[%emt 0:00:00]} 43. b4 {[%emt 0:00:00]} Bd6 {[%emt 0:00:00]} 44. Rd4 {[%emt 0:00:00]} Ke6 {[%emt 0:00:00]} 45. Rg4 {[%emt 0:00:00]} g5 {[%emt 0:00:00]} 46. Re4+ {[%emt 0:00:00]} Kf5 {[%emt 0:00:00]} 47. Rd4 {[%emt 0:00:00]} Ke5 {[%emt 0:00:00]} 48. Rc4 {[%emt 0:00:00]} b5 {[%emt 0:00:00]} 49. f4+ {[%emt 0:00:00]} Kf5 {[%emt 0:00:00]} 50. Rd4 {[%emt 0:00:00]} Ke6 {[%emt 0:00:00]} 51. Kf2 {[%emt 0:00:00]} Bc7 {[%emt 0:00:00]} 52. Kf3 {[%emt 0:00:00]} f5 {[%emt 0:00:00]} 53. h4 {[%emt 0:00:00]} g4+ {[%emt 0:00:00]} 54. Kg2 {[%emt 0:00:00]} Bc6 {[%emt 0:00:00]} 55. Kh2 {[%emt 0:00:00]} Bd6 {[%emt 0:00:00]} 56. Kg1 {[%emt 0:00:00]} Bc7 {[%emt 0:00:00]} 57. Kh2 {[%emt 0:00:00]} Nf6 {[%emt 0:00:00]} 58. Rd3 {[%emt 0:00:00]} Ne4 {[%emt 0:00:13]} 59. Be3 {[%emt 0:00:00]} Bd6 {[%emt 0:01:07]} 60. Rd4 {[%emt 0:00:34]} Bd5 {[%emt 0:00:48]} 61. Kg1 {[%emt 0:01:25]} Bc4 {[%emt 0:00:29]} 62. Kh2 {[%emt 0:03:08]} Bxb4 {[%emt 0:01:03]} 63. Rd1 {[%emt 0:00:58]} Be2 {[%emt 0:01:39]} 64. Rc1 {[%emt 0:01:33]} Kd7 {[%emt 0:00:57]} 65. Bd4 {[%emt 0:00:58]} h5 {[%emt 0:01:06]} 66. Be5 {[%emt 0:00:17]} Bd6 {[%emt 0:00:59]} 67. Bb2 {[%emt 0:01:16]} b4 {[%emt 0:00:42]} 68. Rc2 {[%emt 0:01:10]} Bd3 {[%emt 0:00:21]} 69. Rc1 {[%emt 0:00:20]} b3 {[%emt 0:00:28]} 70. Rd1 {[%emt 0:00:07]} Bc2 {[%emt 0:00:06]} 71. Rd5 {[%emt 0:00:46]} Ke6 {[%emt 0:00:26]} 72. Rd4 {[%emt 0:00:53]} Bc5 {[%emt 0:00:46]} 73. Rc4 {[%emt 0:02:20]} Bf2 {[%emt 0:00:30]} 74. Be5 {[%emt 0:01:34]} Bxg3+ {[%emt 0:00:27]} 75. Kg2 {[%emt 0:00:38]} Bxh4 {[%emt 0:01:28]} 76. Rc6+ {[%emt 0:00:14]} Kf7 {[%emt 0:01:36]} 77. Rh6 {[%emt 0:00:28]} Bf6 {[%emt 0:00:41]} 78. Rxh5 {[%emt 0:00:58]} Bxe5 {[%emt 0:00:10]} 79. fxe5 {[%emt 0:00:24]} b2 {[%emt 0:00:27]} 80. Rxf5+ {[%emt 0:00:22]} Ke6 {[%emt 0:00:21]} 81. Rf1 {[%emt 0:00:23]} b1=Q {[%emt 0:00:11]} 82. Rxb1 {[%emt 0:00:04]} Bxb1 {[%emt 0:00:08]} 83. Kh2 {[%emt 0:00:11]} Kxe5 {[%emt 0:00:08]} 84. Kg2 {[%emt 0:00:10]} Kf4 {[%emt 0:00:09]} 85. Kg1 {[%emt 0:00:21]} Kg3 {[%emt 0:00:39]} 86. Kh1 {[%emt 0:00:18]} Kf2 {[%emt 0:00:23]} 0-1

[Event "GER-ch Youth U12W 2020"]
[Site "Willingen"]
[Date "2020.10.30"]
[Round "6.6"]
[White "Siegel, Irene"]
[Black "Schwenke, Mia"]
[Result "0-1"]
[ECO "C44"]
[WhiteElo "1380"]
[BlackElo "1265"]
[Annotator "NA RC"]
[PlyCount "88"]
[EventDate "2020.10.27"]
[EventType "swiss"]
[EventRounds "7"]
[EventCountry "GER"]
[SourceTitle "playchess.com"]
[Source "ChessBase"]
[SourceQuality "1"]
[TimeControl "40/5400+30:1800+30"]

1. e4 {[%emt 0:00:00]} e5 {[%emt 0:00:00]} 2. Nf3 {[%emt 0:00:00]} Nc6 {[%emt 0:00:00]} 3. d4 {[%emt 0:00:00]} exd4 {[%emt 0:00:00]} 4. Nxd4 {[%emt 0:00:00]} Bb4+ {[%emt 0:00:04]} 5. c3 {[%emt 0:00:47]} Bc5 {[%emt 0:00:07]} 6. Be3 {[%emt 0:00:07]} Bb6 {[%emt 0:00:30]} 7. Bc4 {[%emt 0:02:16]} Nf6 {[%emt 0:04:57]} 8. f3 {[%emt 0:02:49]} O-O {[%emt 0:02:10]} 9. O-O {[%emt 0:00:40]} Re8 {[%emt 0:01:25]} 10. Na3 {[%emt 0:07:17]} d5 {[%emt 0:03:37]} 11. Bd3 {[%emt 0:03:31]} Nxd4 {[%emt 0:03:58]} 12. cxd4 {[%emt 0:01:29]} dxe4 {[%emt 0:00:16]} 13. fxe4 {[%emt 0:01:25]} Bxd4 {[%emt 0:06:16]} 14. Qf3 {[%emt 0:04:17]} Bxb2 {[%emt 0:04:29]} 15. Rad1 {[%emt 0:02:27]} Bg4 {[%emt 0:02:15]} 16. Qf4 {[%emt 0:08:18]} Bxd1 {[%emt 0:01:47]} 17. Rxd1 {[%emt 0:01:38]} Bxa3 {[%emt 0:01:06]} 18. e5 {[%emt 0:02:58]} Nd5 {[%emt 0:00:54]} 19. Qf3 {[%emt 0:00:56]} Nxe3 {[%emt 0:01:25]} 20. Bxh7+ {[%emt 0:01:03]} Kxh7 {[%emt 0:00:10]} 21. Rxd8 {[%emt 0:00:14]} Raxd8 {[%emt 0:00:24]} 22. Qxe3 {[%emt 0:00:16]} Bb2 {[%emt 0:02:38]} 23. Qg5 {[%emt 0:03:32]} Rd1+ {[%emt 0:03:15]} 24. Kf2 {[%emt 0:01:12]} Bd4+ {[%emt 0:00:20]} 25. Kf3 {[%emt 0:00:31]} Rd3+ {[%emt 0:05:45]} 26. Kg4 {[%emt 0:01:06]} Kg8 {[%emt 0:01:13]} 27. e6 {[%emt 0:03:25]} Rxe6 {[%emt 0:07:39]} 28. Qd8+ {[%emt 0:00:58]} Kh7 {[%emt 0:00:06]} 29. Qh4+ {[%emt 0:00:08]} Rh6 {[%emt 0:00:30]} 30. Qe7 {[%emt 0:00:51]} Rg6+ {[%emt 0:00:57]} 31. Kf5 {[%emt 0:00:44]} Rf6+ {[%emt 0:00:48]} 32. Kg4 {[%emt 0:00:18]} Re3 {[%emt 0:01:42]} 33. Qd7 {[%emt 0:02:09]} Re4+ {[%emt 0:01:10]} 34. Kh3 {[%emt 0:00:38]} Rh6+ {[%emt 0:03:01]} 35. Kg3 {[%emt 0:00:18]} Re3+ {[%emt 0:05:28]} 36. Kf4 {[%emt 0:00:36]} Rf6+ {[%emt 0:00:52]} 37. Kg4 {[%emt 0:00:15]} Be5 {[%emt 0:01:33]} 38. g3 {[%emt 0:02:39]} Rf2 {[%emt 0:06:45]} 39. Kh3 {[%emt 0:03:38]} Ree2 {[%emt 0:01:04]} 40. Kg4 {[%emt 0:01:58]} f5+ {[%emt 0:02:45]} 41. Kh5 {[%emt 0:33:03]} Rxh2+ {[%emt 0:30:44]} 42. Kg5 {[%emt 0:00:11]} Rhf2 {[%emt 0:02:09]} 43. g4 {[%emt 0:01:07]} Bf6+ {[%emt 0:00:13]} 44. Kh5 {[%emt 0:00:37]} Rh2# {[%emt 0:00:03]} 0-1